fUST/lending_fUST_20250809
["ID","MTS","AMOUNT","RATE_DAILY","PERIOD"]
[378094258,1754725825796,1807.68778591,0.00021655,2]
[378094312,1754725832683,-1200.0,0.00021716,2]
[378094314,1754725832693,-1329.49355497,0.00021716,2]
[378094315,1754725832703,-212.61586665,0.00021716,2]
[378094316,1754725832715,-87.38413335,0.00021716,2]
[378094317,1754725832725,-7683.13586382,0.00021717,2]
[378094319,1754725832735,-309.20307084,0.00021717,2]
[378094320,1754725832744,-187.23,0.00021807,3]
[378094322,1754725832754,-561.73,0.00021807,3]
[378094324,1754725832763,-13594.28126029,0.0002181,2]
[378094333,1754725838451,-349.45,0.00021807,10]
[378094334,1754725838465,-4871.3333461,0.0002181,2]
[378094335,1754725838870,-4288.35875191,0.0002181,2]
[378094336,1754725838882,-1365.24,0.0002181,2]
[378094371,1754725872979,10000.0,0.00030137,120]
[378094372,1754725988312,428.890036,0.00013699,2]
[378094373,1754725988521,428.890036,0.00020187,2]
[378094388,1754726009462,1788.32034348,0.000199,2]
[378094389,1754726009565,1788.32034345,0.00021655,2]
[378094393,1754726014507,23284.37378384,0.00020877,2]
[378094394,1754726014535,1615.62621616,0.00020877,2]
[378094397,1754726180705,395.39857833,0.00021655,2]
[378094399,1754726188622,1669.09898722,0.000199,2]
[378094400,1754726188733,1669.09898722,0.00021655,2]
[378094401,1754726196160,956.60386808,0.00021655,2]
[378094403,1754726212201,967.34873934,0.00021655,2]
[378094405,1754726228973,1791.74732188,0.00021655,2]
[378094406,1754726243046,188.214547,0.00020714,2]
[378094407,1754726245093,483.90362181,0.00021655,2]
[378094409,1754726290157,835.68081186,0.00021655,2]
[378094411,1754726305653,1328.31167964,0.00021655,2]
[378094425,1754726321576,2145.32894838,0.00021655,2]
[378094428,1754726374511,2269.06499515,0.000199,2]
[378094429,1754726374594,2269.06499499,0.00021655,2]
[378094430,1754726417511,5000.0,0.00021655,2]
[378094433,1754726434438,5000.0,0.00021655,2]
[378094434,1754726440613,2035.6778854,0.00020713,2]
[378094436,1754726450791,1679.82981754,0.00021655,2]
[378094437,1754726450816,3320.17018246,0.00021655,2]
[378094438,1754726454168,5122.09057588,0.00021635,2]
[378094439,1754726466860,3335.86921316,0.00021655,2]
[378094440,1754726480259,2400.9951595,0.00020879,2]
[378094441,1754726482417,5000.0,0.00021655,2]
[378094442,1754726490534,151.79739073,0.00021616,2]
[378094443,1754726498460,5000.0,0.00021655,2]
[378094444,1754726505957,277.56475006,0.00021607,2]
[378094445,1754726514287,5000.0,0.00021655,2]
[378094446,1754726516236,425.69900592,0.00021064,2]
[378094447,1754726520420,2265.81372229,0.00020713,2]
[378094448,1754726520446,1291.86452721,0.00020713,2]
[378094449,1754726529973,5000.0,0.00021655,2]
[378094450,1754726546311,5000.0,0.00021655,2]
[378094451,1754726562593,5000.0,0.00021655,2]
[378094452,1754726570478,2118.87928404,0.000199,2]
[378094453,1754726570574,2118.87928401,0.00021655,2]
[378094454,1754726578177,5000.0,0.00021655,2]
[378094455,1754726594112,5000.0,0.00021655,2]
[378094456,1754726610495,1770.37690474,0.00021655,2]
[378094457,1754726610519,3229.62309526,0.00021655,2]
[378094458,1754726613126,216.05476533,0.00021606,2]
[378094459,1754726626291,2652.36273474,0.00021655,2]
[378094478,1754726667230,168.99603846,0.0001971,2]
[378094480,1754726714140,3414.72705058,0.00021635,2]
[378094481,1754726722639,1212.28107229,0.00021655,2]
[378094482,1754726732667,1163.30686059,0.00021616,2]
[378094483,1754726756044,2647.46650677,0.000199,2]
[378094484,1754726756132,2647.46650671,0.00021655,2]
[378094485,1754726807356,457.32482035,0.00021607,2]
[378094486,1754726812352,7075.6349027,0.00020712,2]
[378094487,1754726817478,180.771677,0.00021056,2]
[378094488,1754726817811,469.58399545,0.00021059,2]
[378094489,1754726819200,5000.0,0.00021655,2]
[378094490,1754726821700,1000.0,0.00020712,2]
[378094492,1754726894996,764.39997377,0.00020712,2]
[378094493,1754726895021,147.64606123,0.00020712,2]
[378094497,1754726931626,3982.2968039,0.000199,2]
[378094498,1754726931724,3982.29680387,0.00021655,2]
[378094499,1754726936442,1641.21,0.00031722,30]
[378094501,1754726939829,5000.0,0.00021655,2]
[378094502,1754726955240,5000.0,0.00021655,2]
[378094503,1754726959536,569.74833,0.00013699,2]
[378094504,1754726959748,569.74833,0.00020187,2]
[378094506,1754726968364,748.73249594,0.00019555,2]
[378094507,1754726974347,2276.4847004,0.00021637,2]
[378094508,1754726996019,10023.04647466,0.00020713,2]
[378094509,1754726996043,14876.95352534,0.00020713,2]
[378094510,1754726999858,5000.0,0.00021655,2]
[378094511,1754727018232,1719.96682748,0.00021607,2]
[378094639,1754727038032,-251.43788568,0.00021688,2]
[378094641,1754727038042,-151.39298869,0.00021704,2]
[378094642,1754727038051,-374.46,0.00021707,3]
[378094643,1754727038062,-168.52,0.00021707,10]
[378094644,1754727038072,-10.24381154,0.00021707,10]
[378094654,1754727038764,-252.87618846,0.00021707,10]
[378094655,1754727038774,-203.04195854,0.00021707,2]
[378094656,1754727038785,-2044.73433286,0.0002171,2]
[378094657,1754727038800,-300.0,0.00021714,2]
[378094658,1754727038816,-300.0,0.00021714,2]
[378094659,1754727038826,-300.0,0.00021714,2]
[378094660,1754727038837,-300.0,0.00021714,2]
[378094661,1754727038846,-1200.0,0.00021714,2]
[378094662,1754727038857,-300.0,0.00021714,2]
[378094663,1754727038867,-160.15433453,0.00021714,2]
[378094664,1754727038876,-500.0,0.00021714,2]
[378094665,1754727038888,-500.0,0.00021714,2]
[378094666,1754727038898,-500.0,0.00021714,2]
[378094668,1754727038908,-500.0,0.00021714,2]
[378094669,1754727038919,-500.0,0.00021714,2]
[378094670,1754727038929,-500.0,0.00021714,2]
[378094671,1754727038940,-500.0,0.00021714,2]
[378094672,1754727038950,-500.0,0.00021714,2]
[378094673,1754727038960,-500.0,0.00021714,2]
[378094674,1754727038971,-500.0,0.00021714,2]
[378094675,1754727038981,-502.91829637,0.00021714,2]
[378094676,1754727038991,-500.0,0.00021714,2]
[378094677,1754727039001,-500.0,0.00021714,2]
[378094678,1754727039012,-500.0,0.00021714,2]
[378094679,1754727039023,-500.0,0.00021714,2]
[378094680,1754727039033,-415.36114674,0.00021714,2]
[378094681,1754727039043,-500.0,0.00021714,2]
[378094682,1754727039054,-500.0,0.00021714,2]
[378094683,1754727039063,-500.0,0.00021714,2]
[378094684,1754727039073,-500.0,0.00021714,2]
[378094685,1754727039083,-200.87627386,0.00021714,2]
[378094686,1754727039094,-597.86196189,0.00021714,2]
[378094687,1754727039104,-500.0,0.00021714,2]
[378094688,1754727039114,-171.99346932,0.00021714,2]
[378094689,1754727039123,-281.73358078,0.00021714,2]
[378094690,1754727039133,-500.0,0.00021714,2]
[378094691,1754727039142,-500.0,0.00021714,2]
[378094692,1754727039152,-500.0,0.00021714,2]
[378094693,1754727039161,-500.0,0.00021714,2]
[378094694,1754727039171,-382.37891648,0.00021714,2]
[378094695,1754727039180,-500.0,0.00021714,2]
[378094696,1754727039190,-500.0,0.00021714,2]
[378094697,1754727039201,-500.0,0.00021714,2]
[378094698,1754727039210,-500.0,0.00021714,2]
[378094699,1754727039220,-500.0,0.00021714,2]
[378094700,1754727039230,-500.0,0.00021714,2]
[378094701,1754727039239,-500.0,0.00021714,2]
[378094702,1754727039248,-500.0,0.00021714,2]
[378094703,1754727039258,-500.0,0.00021714,2]
[378094704,1754727039267,-500.0,0.00021714,2]
[378094705,1754727039276,-500.0,0.00021714,2]
[378094706,1754727039286,-500.0,0.00021714,2]
[378094707,1754727039295,-500.0,0.00021714,2]
[378094708,1754727039304,-500.0,0.00021714,2]
[378094709,1754727039314,-500.0,0.00021714,2]
[378094710,1754727039324,-500.0,0.00021714,2]
[378094711,1754727039333,-500.0,0.00021714,2]
[378094712,1754727039342,-500.0,0.00021714,2]
[378094713,1754727039351,-500.0,0.00021714,2]
[378094714,1754727039360,-500.0,0.00021714,2]
[378094715,1754727039370,-500.0,0.00021714,2]
[378094716,1754727039379,-500.0,0.00021714,2]
[378094717,1754727039389,-500.0,0.00021714,2]
[378094718,1754727039398,-500.0,0.00021714,2]
[378094719,1754727039407,-50000.0,0.00021715,2]
[378094720,1754727039417,-500.0,0.00021715,2]
[378094721,1754727039427,-241.70619252,0.00021716,2]
[378094722,1754727039436,-500.0,0.00021716,2]
[378094723,1754727039445,-500.0,0.00021716,2]
[378094724,1754727039454,-500.0,0.00021716,2]
[378094725,1754727039463,-500.0,0.00021716,2]
[378094726,1754727039473,-500.0,0.00021716,2]
[378094727,1754727039482,-500.0,0.00021716,2]
[378094728,1754727039491,-11280.51290043,0.00021717,2]
[378094729,1754727039501,-310212.65136325,0.00021717,2]
[378094730,1754727039511,-2044.73433282,0.00021737,2]
[378094731,1754727039520,-2044.73433282,0.00021764,2]
[378094732,1754727039529,-2044.73433282,0.0002179,2]
[378094733,1754727039538,-2000.0,0.0002181,2]
[378094734,1754727039548,-2000.0,0.0002181,2]
[378094735,1754727039557,-925.73,0.0002181,2]
[378094736,1754727039567,-8403.25962561,0.0002181,2]
[378094737,1754727039577,-2044.73433282,0.00021817,2]
[378094738,1754727039586,-31732.9,0.000219,2]
[378094739,1754727039596,-35313.76,0.000219,2]
[378094740,1754727039605,-151.0,0.000219,4]
[378094741,1754727039614,-1000.0,0.00021916,2]
[378094742,1754727039624,-1000.0,0.00021916,2]
[378094743,1754727039634,-460.0,0.00021917,2]
[378094744,1754727039643,-460.0,0.00021917,2]
[378094745,1754727039653,-460.0,0.00021917,2]
[378094746,1754727039662,-463.93041204,0.00021917,2]
[378094747,1754727039672,-460.0,0.00021917,2]
[378094748,1754727039682,-546.17744632,0.00021917,2]
[378094749,1754727039691,-151.0,0.00021917,2]
[378094750,1754727039889,-460.0,0.00021917,2]
[378094751,1754727039899,-460.0,0.00021917,2]
[378094752,1754727039909,-452.0209369,0.00021917,2]
[378094753,1754727039919,-460.0,0.00021917,2]
[378094754,1754727039928,-460.0,0.00021917,2]
[378094755,1754727039938,-460.0,0.00021917,2]
[378094756,1754727039948,-460.0,0.00021917,2]
[378094757,1754727039958,-460.0,0.00021917,2]
[378094758,1754727039967,-500.07924969,0.00021917,2]
[378094759,1754727039977,-460.0,0.00021917,2]
[378094760,1754727039986,-152.2066,0.00021917,2]
[378094761,1754727039996,-460.0,0.00021917,2]
[378094762,1754727040010,-460.0,0.00021917,2]
[378094763,1754727040026,-460.0,0.00021917,2]
[378094764,1754727040036,-460.0,0.00021917,2]
[378094765,1754727040045,-460.0,0.00021917,2]
[378094766,1754727040054,-460.0,0.00021917,2]
[378094767,1754727040064,-460.0,0.00021917,2]
[378094768,1754727040073,-460.0,0.00021917,2]
[378094769,1754727040082,-460.0,0.00021917,2]
[378094770,1754727040092,-460.0,0.00021917,2]
[378094771,1754727040101,-460.0,0.00021917,2]
[378094772,1754727040110,-525.21829543,0.00021917,2]
[378094773,1754727040120,-460.0,0.00021917,2]
[378094774,1754727040129,-460.0,0.00021917,2]
[378094775,1754727040138,-460.0,0.00021917,2]
[378094776,1754727040148,-460.0,0.00021917,2]
[378094777,1754727040157,-460.0,0.00021917,2]
[378094778,1754727040166,-460.0,0.00021917,2]
[378094779,1754727040176,-460.0,0.00021917,2]
[378094780,1754727040185,-460.0,0.00021917,2]
[378094781,1754727040194,-460.0,0.00021917,2]
[378094783,1754727040204,-467.13030656,0.00021917,2]
[378094784,1754727040214,-460.0,0.00021917,2]
[378094786,1754727040223,-460.0,0.00021917,2]
[378094788,1754727040233,-460.0,0.00021917,2]
[378094790,1754727040242,-460.0,0.00021917,2]
[378094791,1754727040252,-460.0,0.00021917,2]
[378094792,1754727040262,-460.0,0.00021917,2]
[378094793,1754727040271,-460.0,0.00021917,2]
[378094794,1754727040280,-460.0,0.00021917,2]
[378094795,1754727040289,-460.0,0.00021917,2]
[378094796,1754727040299,-460.0,0.00021917,2]
[378094798,1754727040309,-460.0,0.00021917,2]
[378094799,1754727040318,-460.0,0.00021917,2]
[378094800,1754727040327,-460.0,0.00021917,2]
[378094801,1754727040336,-460.0,0.00021917,2]
[378094802,1754727040346,-460.0,0.00021917,2]
[378094803,1754727040355,-460.0,0.00021917,2]
[378094805,1754727040572,-460.0,0.00021917,2]
[378094806,1754727040581,-460.0,0.00021917,2]
[378094807,1754727040591,-460.0,0.00021917,2]
[378094808,1754727040600,-460.0,0.00021917,2]
[378094809,1754727040610,-557.1359945,0.00021917,2]
[378094810,1754727040619,-151.0,0.00021917,2]
[378094811,1754727040629,-540.1,0.00021917,2]
[378094812,1754727040638,-460.0,0.00021917,2]
[378094813,1754727040647,-460.0,0.00021917,2]
[378094814,1754727040657,-500.41,0.00021917,2]
[378094815,1754727040666,-460.0,0.00021917,2]
[378094816,1754727040675,-460.0,0.00021917,2]
[378094817,1754727040684,-460.0,0.00021917,2]
[378094818,1754727040694,-460.0,0.00021917,2]
[378094819,1754727040704,-460.0,0.00021917,2]
[378094820,1754727040713,-460.0,0.00021917,2]
[378094821,1754727040722,-460.0,0.00021917,2]
[378094822,1754727040731,-460.0,0.00021917,2]
[378094823,1754727040740,-460.0,0.00021917,2]
[378094824,1754727040750,-460.0,0.00021917,2]
[378094825,1754727040759,-460.0,0.00021917,2]
[378094826,1754727040768,-378.9157829,0.00021917,2]
[378094827,1754727040777,-460.0,0.00021917,2]
[378094828,1754727040787,-150.0,0.00021917,2]
[378094829,1754727040796,-460.0,0.00021917,2]
[378094830,1754727040809,-475.86284599,0.00021917,2]
[378094831,1754727040818,-460.0,0.00021917,2]
[378094832,1754727040828,-460.0,0.00021917,2]
[378094833,1754727040837,-681.83,0.00021917,2]
[378094834,1754727040847,-460.0,0.00021917,2]
[378094835,1754727040856,-460.0,0.00021917,2]
[378094836,1754727040865,-461.51303452,0.00021917,2]
[378094837,1754727040875,-460.0,0.00021917,2]
[378094838,1754727040887,-460.0,0.00021917,2]
[378094839,1754727040897,-247.73543846,0.00021917,2]
[378094840,1754727040906,-152.15388907,0.00021917,2]
[378094841,1754727040915,-460.0,0.00021917,2]
[378094842,1754727040925,-460.0,0.00021917,2]
[378094843,1754727040935,-460.0,0.00021917,2]
[378094844,1754727040944,-468.44001497,0.00021917,2]
[378094845,1754727040953,-460.0,0.00021917,2]
[378094846,1754727040963,-460.0,0.00021917,2]
[378094847,1754727040972,-460.0,0.00021917,2]
[378094848,1754727040982,-389.56020983,0.00021917,2]
[378094849,1754727040991,-460.0,0.00021917,2]
[378094850,1754727041001,-151.91025973,0.00021917,2]
[378094851,1754727041010,-460.0,0.00021917,2]
[378094852,1754727041019,-151.0,0.00021917,2]
[378094853,1754727041028,-152.35217372,0.00021917,2]
[378094854,1754727041038,-460.0,0.00021917,2]
[378094855,1754727041047,-151.0,0.00021917,2]
[378094856,1754727041056,-260.30979556,0.00021917,2]
[378094857,1754727041065,-165.29452837,0.00021917,2]
[378094858,1754727041075,-460.0,0.00021917,2]
[378094859,1754727041084,-460.0,0.00021917,2]
[378094860,1754727041093,-460.0,0.00021917,2]
[378094861,1754727041102,-460.0,0.00021917,2]
[378094862,1754727041111,-460.0,0.00021917,2]
[378094863,1754727041121,-460.0,0.00021917,2]
[378094864,1754727041130,-460.0,0.00021917,2]
[378094865,1754727041140,-460.0,0.00021917,2]
[378094866,1754727041149,-460.0,0.00021917,2]
[378094867,1754727041158,-550.03774585,0.00021917,2]
[378094868,1754727041168,-460.0,0.00021917,2]
[378094869,1754727041177,-572.94459415,0.00021917,2]
[378094870,1754727041187,-2026.41,0.00021917,2]
[378094871,1754727041196,-2812.35,0.00021917,2]
[378094872,1754727041206,-465.87,0.00021917,2]
[378094873,1754727041216,-460.0,0.00021917,2]
[378094874,1754727041226,-460.0,0.00021917,2]
[378094875,1754727041235,-460.0,0.00021917,2]
[378094876,1754727041244,-471.24203356,0.00021917,2]
[378094877,1754727041254,-460.0,0.00021917,2]
[378094878,1754727041263,-460.0,0.00021917,2]
[378094879,1754727041273,-460.0,0.00021917,2]
[378094880,1754727041282,-798.84,0.00021917,2]
[378094881,1754727041292,-460.0,0.00021917,2]
[378094882,1754727041301,-460.0,0.00021917,2]
[378094883,1754727041311,-460.0,0.00021917,2]
[378094884,1754727041320,-888.52,0.00021917,2]
[378094885,1754727041329,-688.16,0.00021917,2]
[378094886,1754727041338,-845.39,0.00021917,2]
[378094887,1754727041347,-357.69619502,0.00021917,2]
[378094888,1754727041356,-475.14,0.00021917,2]
[378094889,1754727041366,-460.0,0.00021917,2]
[378094890,1754727041375,-460.0,0.00021917,2]
[378094891,1754727041384,-460.0,0.00021917,2]
[378094892,1754727041393,-727.15,0.00021917,2]
[378094893,1754727041402,-460.0,0.00021917,2]
[378094894,1754727041412,-460.0,0.00021917,2]
[378094895,1754727041422,-574.62,0.00021917,2]
[378094896,1754727041431,-460.0,0.00021917,2]
[378094897,1754727041440,-1001.81,0.00021917,2]
[378094898,1754727041449,-408.14695532,0.00021917,2]
[378094899,1754727041460,-460.0,0.00021917,2]
[378094900,1754727041470,-524.05,0.00021917,2]
[378094901,1754727041480,-460.0,0.00021917,2]
[378094902,1754727041489,-460.0,0.00021917,2]
[378094903,1754727041499,-460.0,0.00021917,2]
[378094904,1754727041508,-2116.63,0.00021917,2]
[378094905,1754727041518,-463.64663747,0.00021917,2]
[378094906,1754727041528,-460.0,0.00021917,2]
[378094907,1754727041538,-460.0,0.00021917,2]
[378094908,1754727041549,-460.0,0.00021917,2]
[378094909,1754727041560,-460.0,0.00021917,2]
[378094910,1754727041572,-151.0,0.00021917,2]
[378094911,1754727041582,-198.67878968,0.00021917,2]
[378094912,1754727041592,-460.0,0.00021917,2]
[378094913,1754727041601,-460.0,0.00021917,2]
[378094914,1754727041610,-151.0,0.00021917,2]
[378094915,1754727041620,-1097.1,0.00021917,2]
[378094916,1754727041629,-460.0,0.00021917,2]
[378094917,1754727041639,-1819.54,0.00021917,2]
[378094918,1754727041648,-151.0,0.00021917,2]
[378094919,1754727041657,-460.0,0.00021917,2]
[378094920,1754727041667,-151.0,0.00021917,2]
[378094921,1754727041676,-460.0,0.00021917,2]
[378094922,1754727041685,-460.0,0.00021917,2]
[378094923,1754727041694,-460.0,0.00021917,2]
[378094924,1754727041703,-222.47190652,0.00021917,2]
[378094925,1754727041712,-460.0,0.00021917,2]
[378094926,1754727041722,-460.0,0.00021917,2]
[378094927,1754727041731,-1040.33,0.00021917,2]
[378094928,1754727041740,-460.0,0.00021917,2]
[378094929,1754727041749,-460.0,0.00021917,2]
[378094930,1754727041758,-460.0,0.00021917,2]
[378094931,1754727041768,-460.0,0.00021917,2]
[378094932,1754727041777,-460.0,0.00021917,2]
[378094933,1754727041786,-460.0,0.00021917,2]
[378094934,1754727041795,-460.0,0.00021917,2]
[378094935,1754727041807,-460.0,0.00021917,2]
[378094936,1754727041817,-460.0,0.00021917,2]
[378094937,1754727041827,-460.0,0.00021917,2]
[378094938,1754727041836,-460.0,0.00021917,2]
[378094939,1754727041846,-460.0,0.00021917,2]
[378094940,1754727041855,-460.0,0.00021917,2]
[378094941,1754727041865,-461.2065651,0.00021917,2]
[378094942,1754727041874,-460.0,0.00021917,2]
[378094943,1754727041885,-460.0,0.00021917,2]
[378094944,1754727041894,-460.0,0.00021917,2]
[378094945,1754727041904,-460.0,0.00021917,2]
[378094946,1754727041913,-464.7038424,0.00021917,2]
[378094947,1754727041923,-460.0,0.00021917,2]
[378094948,1754727041932,-1281.46,0.00021917,2]
[378094949,1754727041942,-460.0,0.00021917,2]
[378094950,1754727041951,-460.0,0.00021917,2]
[378094951,1754727041960,-598.05,0.00021917,2]
[378094952,1754727041970,-460.0,0.00021917,2]
[378094953,1754727041979,-460.0,0.00021917,2]
[378094954,1754727041989,-460.0,0.00021917,2]
[378094955,1754727041998,-460.0,0.00021917,2]
[378094956,1754727042007,-460.0,0.00021917,2]
[378094957,1754727042016,-1755.61,0.00021917,2]
[378094958,1754727042025,-460.0,0.00021917,2]
[378094959,1754727042035,-460.0,0.00021917,2]
[378094960,1754727042044,-460.0,0.00021917,2]
[378094961,1754727042053,-460.0,0.00021917,2]
[378094962,1754727042062,-736.17,0.00021917,2]
[378094963,1754727042071,-4169.52,0.00021917,2]
[378094964,1754727042081,-572.91,0.00021917,2]
[378094965,1754727042091,-460.0,0.00021917,2]
[378094966,1754727042101,-460.0,0.00021917,2]
[378094967,1754727042110,-460.0,0.00021917,2]
[378094968,1754727042119,-460.0,0.00021917,2]
[378094969,1754727042129,-460.0,0.00021917,2]
[378094970,1754727042138,-460.0,0.00021917,2]
[378094971,1754727042147,-460.0,0.00021917,2]
[378094972,1754727042157,-460.0,0.00021917,2]
[378094973,1754727042166,-460.0,0.00021917,2]
[378094974,1754727042176,-460.0,0.00021917,2]
[378094975,1754727042185,-464.14082523,0.00021917,2]
[378094976,1754727042194,-460.0,0.00021917,2]
[378094977,1754727042203,-460.0,0.00021917,2]
[378094978,1754727042212,-673.89,0.00021917,2]
[378094979,1754727042221,-460.0,0.00021917,2]
[378094980,1754727042230,-509.72,0.00021917,2]
[378094981,1754727042240,-707.23,0.00021917,2]
[378094982,1754727042250,-460.0,0.00021917,2]
[378094983,1754727042260,-151.0,0.00021917,2]
[378094984,1754727042269,-238.69842187,0.00021917,2]
[378094985,1754727042278,-460.0,0.00021917,2]
[378094986,1754727042289,-151.0,0.00021917,2]
[378094987,1754727042298,-1722.83,0.00021917,2]
[378094988,1754727042307,-978.71,0.00021917,2]
[378094989,1754727042317,-592.8,0.00021917,2]
[378094990,1754727042327,-154.000433,0.00021917,2]
[378094991,1754727042338,-460.0,0.00021917,2]
[378094992,1754727042349,-245.87622507,0.00021917,2]
[378094993,1754727042359,-460.0,0.00021917,2]
[378094994,1754727042369,-460.0,0.00021917,2]
[378094995,1754727042380,-463.3595935,0.00021917,2]
[378094996,1754727042389,-460.0,0.00021917,2]
[378094997,1754727042399,-460.0,0.00021917,2]
[378094998,1754727042408,-460.0,0.00021917,2]
[378094999,1754727042418,-460.0,0.00021917,2]
[378095000,1754727042427,-1453.27,0.00021917,2]
[378095001,1754727042436,-151.0,0.00021917,2]
[378095002,1754727042446,-460.0,0.00021917,2]
[378095003,1754727042456,-460.0,0.00021917,2]
[378095004,1754727042465,-460.0,0.00021917,2]
[378095005,1754727042474,-460.0,0.00021917,2]
[378095006,1754727042483,-460.0,0.00021917,2]
[378095007,1754727042492,-460.0,0.00021917,2]
[378095008,1754727042502,-460.0,0.00021917,2]
[378095009,1754727042512,-962.12,0.00021917,2]
[378095010,1754727042521,-1069.49,0.00021917,2]
[378095011,1754727042531,-912.005447,0.00021917,2]
[378095012,1754727042541,-460.0,0.00021917,2]
[378095013,1754727042551,-460.0,0.00021917,2]
[378095014,1754727042560,-460.0,0.00021917,2]
[378095015,1754727042569,-460.0,0.00021917,2]
[378095016,1754727042578,-461.80266231,0.00021917,2]
[378095017,1754727042587,-912.005447,0.00021917,2]
[378095018,1754727042596,-460.0,0.00021917,2]
[378095019,1754727042605,-460.0,0.00021917,2]
[378095020,1754727042615,-460.0,0.00021917,2]
[378095021,1754727042624,-460.0,0.00021917,2]
[378095022,1754727042633,-460.0,0.00021917,2]
[378095023,1754727042642,-547.54,0.00021917,2]
[378095024,1754727042651,-460.0,0.00021917,2]
[378095025,1754727042660,-460.0,0.00021917,2]
[378095026,1754727042669,-460.0,0.00021917,2]
[378095027,1754727042678,-460.0,0.00021917,2]
[378095028,1754727042687,-460.0,0.00021917,2]
[378095029,1754727042697,-460.0,0.00021917,2]
[378095030,1754727042706,-460.0,0.00021917,2]
[378095031,1754727042715,-460.0,0.00021917,2]
[378095032,1754727042724,-460.0,0.00021917,2]
[378095033,1754727042734,-460.0,0.00021917,2]
[378095034,1754727042743,-460.0,0.00021917,2]
[378095035,1754727042752,-460.0,0.00021917,2]
[378095036,1754727042762,-460.0,0.00021917,2]
[378095037,1754727042772,-1290.96,0.00021917,2]
[378095038,1754727042781,-586.62,0.00021917,2]
[378095039,1754727042792,-500.0,0.00021917,2]
[378095040,1754727042802,-460.0,0.00021917,2]
[378095041,1754727042816,-151.0,0.00021917,2]
[378095042,1754727042826,-460.0,0.00021917,2]
[378095043,1754727042836,-684.24,0.00021917,2]
[378095044,1754727042845,-151.0,0.00021917,2]
[378095045,1754727042856,-151.0,0.00021917,2]
[378095046,1754727042865,-460.0,0.00021917,2]
[378095047,1754727042876,-460.0,0.00021917,2]
[378095048,1754727042888,-198.91726074,0.00021917,2]
[378095049,1754727042897,-460.0,0.00021917,2]
[378095050,1754727042907,-460.0,0.00021917,2]
[378095051,1754727042918,-221.28019452,0.00021917,2]
[378095052,1754727042927,-460.0,0.00021917,2]
[378095053,1754727042937,-463.42231626,0.00021917,2]
[378095054,1754727042946,-196.0764329,0.00021917,2]
[378095055,1754727042955,-158.7591481,0.00021918,2]
[378095056,1754727042964,-500.0,0.00021918,2]
[378095057,1754727042974,-500.0,0.00021918,2]
[378095058,1754727042983,-500.0,0.00021918,2]
[378095059,1754727042993,-307.95767493,0.00021918,2]
[378095060,1754727043003,-334.0,0.00021951,2]
[378095061,1754727043012,-503.7279548,0.00021973,2]
[378095062,1754727043021,-500.00704294,0.00021973,2]
[378095064,1754727043031,-500.0,0.00021973,2]
[378095066,1754727043040,-500.0,0.00021973,2]
[378095068,1754727043050,-500.0,0.00021973,2]
[378095070,1754727043059,-500.0,0.00021973,2]
[378095072,1754727043068,-500.0,0.00021973,2]